bitfinex/quotes_ETHUSD_20250722
["timestamp","ask_amount","ask_price","bid_price","bid_amount"]
[1753154173861,4.179,3734.0,3733.8,0.4715]
[1753154174158,4.179,3734.0,3733.8,0.001]
[1753154175551,0.1336,3734.2,3733.8,0.001]
[1753154175755,0.002,3734.5,3734.0,0.7761]
[1753154175973,4.179,3734.2,3734.1,3.28212147]
[1753154176259,4.179,3734.2,3734.1,1.28051364]
[1753154176453,0.002,3734.5,3734.1,0.1336]
[1753154176782,4.179,3734.3,3733.8,0.1346]
[1753154177125,0.1336,3734.1,3733.8,0.001]
[1753154178669,0.002,3734.5,3733.9,0.4422]
[1753154178833,4.3116,3734.4,3734.0,0.7761]
[1753154179038,4.178,3734.4,3734.0,3.89638177]
[1753154180060,4.178,3734.4,3734.0,0.7761]
[1753154180264,3.12751682,3734.4,3734.0,0.7761]
[1753154180449,4.6277,3734.3,3733.8,0.001]
[1753154180654,2.67809407,3734.0,3733.8,0.001]
[1753154181235,2.67803598,3734.1,3733.8,0.001]
[1753154181567,0.1336,3734.2,3733.8,2.67922429]
[1753154181729,4.177,3734.1,3733.9,3.12035785]
[1753154181928,4.177,3734.2,3734.0,1.2141]
[1753154182128,4.177,3734.3,3734.2,2.67788528]
[1753154182448,0.002,3734.5,3734.4,2.67780634]
[1753154182643,0.002,3734.5,3734.4,6.6290844]
[1753154182853,0.002,3734.5,3734.4,9.22176961]
[1753154183645,0.002,3734.5,3734.4,9.77176961]
[1753154183829,4.177,3735.6,3735.3,0.7909]
[1753154185377,4.177,3735.6,3735.1,0.1336]
[1753154185748,0.1336,3735.8,3735.1,2.81089206]
[1753154186078,4.177,3735.6,3735.1,3.481323]
[1753154186270,4.177,3735.7,3735.1,3.481323]
[1753154186651,4.177,3735.7,3735.2,2.6771866]
[1753154187080,4.177,3735.7,3735.1,3.48131912]
[1753154187275,4.177,3735.7,3735.2,2.67721676]
[1753154187476,0.1336,3735.8,3735.2,0.73745916]
[1753154187657,4.3116,3736.0,3735.6,2.67693385]
[1753154187852,4.178,3736.0,3735.7,0.1336]
[1753154188676,4.178,3736.0,3735.2,0.73745916]
[1753154188677,2.67673584,3735.9,3735.2,0.73745916]
[1753154188848,0.1336,3735.8,3735.2,0.1336]
[1753154189048,2.8104077,3735.8,3735.2,0.1336]
[1753154189793,2.67687448,3735.7,3735.2,0.1336]
[1753154190285,3.12657448,3735.7,3735.2,0.1336]
[1753154190576,0.4497,3735.6,3734.7,3.50253749]
[1753154190881,4.175,3735.5,3735.0,0.1336]
[1753154191678,7.30172338,3735.5,3735.0,0.1336]
[1753154191878,4.175,3735.4,3735.0,0.1336]
[1753154192199,0.1336,3735.6,3735.1,2.67725284]
[1753154192399,4.175,3735.5,3735.1,0.28108528]
[1753154192698,4.175,3735.4,3735.1,0.28108528]
[1753154192875,4.175,3735.5,3735.3,0.7909]
[1753154193065,0.002,3736.0,3735.4,0.4422]
[1753154193265,0.002,3736.0,3735.5,2.6770178]
[1753154193466,0.002,3736.0,3735.6,2.83730454]
[1753154193902,0.002,3736.0,3735.9,2.67673117]
[1753154194601,0.002,3736.0,3735.9,0.72921424]
[1753154194806,0.002,3736.0,3735.5,2.67700459]
[1753154195013,0.002,3736.0,3735.7,0.1336]
[1753154195171,0.4517,3736.0,3735.7,0.1336]
[1753154195512,3.12643715,3735.9,3735.3,0.7909]
[1753154195681,2.67681642,3735.8,3735.3,0.1336]
[1753154195884,0.4497,3735.8,3735.3,0.1336]
[1753154197390,3.12650329,3735.8,3735.3,0.1336]
[1753154197705,5.0675,3735.9,3735.3,2.81075752]
[1753154197870,4.3076,3735.9,3735.3,1.17521313]
[1753154198077,0.1336,3735.9,3735.4,0.4422]
[1753154198368,0.002,3735.8,3735.7,2.67687448]
[1753154198597,0.002,3735.8,3735.7,3.25267448]
[1753154198810,0.002,3735.8,3735.7,3.95106884]
[1753154199369,0.002,3735.8,3735.7,3.9243001]
[1753154199609,0.002,3735.8,3735.7,0.80522562]
[1753154199806,0.002,3735.8,3735.3,2.67715305]
[1753154199990,0.002,3735.8,3735.4,0.1336]
[1753154199991,0.4497,3735.7,3735.4,0.1336]
[1753154200293,3.26029938,3735.6,3735.0,0.1336]
[1753154201017,0.5833,3735.6,3735.0,0.1336]
[1753154201324,0.1336,3735.6,3735.0,0.1336]
[1753154201612,4.175,3735.8,3735.0,3.48666665]
[1753154201783,4.175,3735.8,3735.3,0.1336]
[1753154202237,4.175,3735.8,3735.3,2.81075369]
[1753154203038,4.175,3735.8,3735.3,0.1336]
[1753154203718,4.6247,3735.8,3735.3,0.1336]
[1753154203920,7.30151035,3735.8,3735.3,0.1336]
[1753154204440,4.6247,3735.8,3735.3,0.1336]
[1753154204640,4.6247,3735.8,3735.0,0.80931745]
[1753154204641,2.67687448,3735.7,3735.0,0.80931745]
[1753154204849,0.5833,3735.7,3735.1,0.1336]
[1753154205044,2.67699851,3735.6,3735.1,0.1336]
[1753154205242,2.67708946,3735.4,3734.5,11.1243797]
[1753154205444,0.1336,3735.2,3734.6,0.1336]
[1753154205737,2.81084981,3735.2,3734.6,3.1336]
[1753154206106,0.1336,3735.2,3734.6,0.1336]
[1753154206314,2.67743137,3735.0,3734.6,0.1336]
[1753154206646,2.6775948,3734.7,3734.5,0.001]
[1753154207043,0.4568,3734.6,3734.5,0.001]
[1753154207347,2.81106353,3734.9,3734.5,0.001]
[1753154207348,0.1336,3734.9,3734.5,0.001]
[1753154207842,4.3056,3735.1,3734.5,0.6011]
[1753154208144,4.3056,3735.1,3734.5,0.1346]
[1753154208318,4.3056,3735.1,3734.5,0.84858843]
[1753154208737,4.3056,3735.1,3734.6,2.67765808]
[1753154209051,4.3056,3735.1,3734.7,2.67756195]
[1753154209244,4.3056,3735.1,3734.6,2.6776547]
[1753154209758,4.3056,3735.1,3734.5,3.52631781]
[1753154209950,4.3056,3735.1,3734.7,2.67759051]
[1753154210124,4.3056,3735.1,3734.5,3.52625478]
[1753154210324,0.7732,3735.5,3734.7,2.67759123]
[1753154210541,4.3056,3735.4,3735.0,2.67736489]
[1753154210926,0.002,3735.7,3735.2,2.6772082]
[1753154211126,0.002,3735.7,3734.6,1.40333366]
[1753154211127,0.1336,3735.5,3734.9,0.1336]
[1753154211330,2.67721193,3735.3,3734.5,3.39270262]
[1753154211638,0.1336,3735.3,3734.6,0.48841979]
[1753154211840,2.67723297,3735.2,3734.6,0.48841979]
[1753154212037,2.67730785,3735.1,3734.6,0.48841979]
[1753154212226,0.4568,3735.2,3734.6,0.1336]
[1753154213160,2.67731482,3735.1,3734.6,0.1336]
[1753154213326,0.4568,3735.2,3734.6,0.1336]
[1753154213327,2.67724585,3735.2,3734.6,0.1336]
[1753154213532,0.4568,3735.0,3734.6,0.1336]
[1753154213968,0.4568,3734.9,3734.5,0.001]
[1753154214450,0.1336,3734.6,3734.5,0.001]
[1753154216649,0.1336,3734.6,3734.5,2.67873463]
[1753154216854,0.1336,3735.1,3734.5,0.41802299]
[1753154217039,0.1336,3735.1,3734.6,2.67765703]
[1753154217358,0.1336,3735.1,3734.5,2.81231729]
[1753154217767,0.1336,3735.1,3734.5,0.1346]
[1753154218330,0.4568,3735.0,3734.5,0.001]
[1753154218536,0.1336,3734.7,3734.5,0.001]
[1753154219877,2.67745044,3734.9,3734.5,0.001]
[1753154219878,1.2107,3734.6,3734.5,0.001]
[1753154220039,3.88836293,3734.6,3734.5,0.001]
[1753154220239,1.2107,3734.6,3734.5,0.001]
[1753154220553,4.171,3734.7,3734.5,0.001]
[1753154221256,0.1336,3734.9,3734.5,0.001]
[1753154221573,0.002,3735.0,3734.5,0.001]
[1753154221574,0.002,3735.0,3734.5,0.1346]
[1753154221741,0.4568,3734.9,3734.5,0.1346]
[1753154221942,0.4568,3734.9,3734.5,2.8123314]
[1753154222165,3.275903,3734.7,3734.5,0.1346]
[1753154222374,0.4568,3734.6,3734.5,0.001]
[1753154222581,0.5904,3734.6,3734.5,0.001]
[1753154222964,0.1336,3734.6,3734.5,0.001]
[1753154223454,0.5904,3734.6,3734.5,0.001]
[1753154224060,4.03966293,3734.6,3734.5,0.001]
[1753154224261,1.362,3734.6,3734.5,0.001]
[1753154224578,4.03966293,3734.6,3734.5,0.001]
[1753154225146,1.362,3734.6,3734.5,0.001]
[1753154225381,0.1336,3734.6,3734.5,0.001]
[1753154225677,3.275903,3734.7,3734.5,3.45213463]
[1753154225883,3.275903,3734.7,3734.5,0.43226526]
[1753154226071,0.4568,3734.6,3734.5,0.001]
[1753154226258,3.275903,3734.7,3734.5,0.001]
[1753154226858,3.275903,3734.7,3734.5,2.67870811]
[1753154227057,3.275903,3734.7,3734.6,2.67766293]
[1753154227271,3.275903,3734.7,3734.6,3.99715824]
[1753154227476,3.275903,3734.7,3734.6,4.46365824]
[1753154227682,3.275903,3734.7,3734.6,4.59725824]
[1753154230203,3.275903,3734.7,3734.6,1.45309531]
[1753154230353,3.275903,3734.7,3734.6,0.9019]
[1753154231106,3.275903,3734.7,3734.6,3.57956293]
[1753154231255,3.275903,3734.7,3734.6,2.81126293]
[1753154231462,3.275903,3734.7,3734.6,0.1336]
[1753154232879,3.275903,3734.7,3734.6,2.81126293]
[1753154233700,3.275903,3734.7,3734.6,0.1336]
[1753154234570,3.275903,3734.7,3734.5,0.001]
[1753154234778,3.275903,3734.7,3734.5,3.1126398]
[1753154235473,3.275903,3734.7,3734.5,0.43490957]
[1753154235989,0.8331,3734.6,3734.5,0.001]
[1753154236297,3.732703,3734.7,3734.5,0.001]
[1753154236497,3.275903,3734.7,3734.5,0.001]
[1753154237176,0.1336,3734.9,3734.5,0.001]
[1753154237803,0.5712,3734.9,3734.5,0.001]
[1753154238861,0.4376,3734.8,3734.5,0.001]
[1753154239276,2.81106444,3734.9,3734.5,0.001]
[1753154239567,2.67766293,3734.6,3734.5,0.001]
[1753154239877,0.9638,3734.6,3734.5,0.001]
[1753154240173,1.4014,3734.6,3734.5,0.001]
[1753154241097,4.17,3735.0,3734.5,0.001]
[1753154241297,0.1336,3734.8,3734.5,0.001]
[1753154241768,3.57516293,3734.6,3734.5,0.001]
[1753154241974,5.0655,3734.6,3734.5,0.001]
[1753154242206,8.18076293,3734.6,3734.5,0.001]
[1753154242393,5.5031,3734.6,3734.5,0.001]
[1753154242998,20.0031,3734.6,3734.5,0.001]
[1753154243516,22.68076293,3734.6,3734.5,0.001]
[1753154243974,26.23076293,3734.6,3734.5,0.001]
[1753154245272,3.47246492,3733.9,3733.8,0.001]
[1753154245472,10.63946492,3733.9,3733.8,0.001]
[1753154245673,11.62706492,3733.9,3733.8,0.001]
[1753154245904,26.12706492,3733.9,3733.8,0.001]
[1753154246673,26.25812772,3733.9,3733.8,0.001]
[1753154247075,26.25812772,3733.9,3733.8,1e-08]
[1753154248684,26.12706492,3733.9,3733.8,1e-08]
[1753154249487,21.96006492,3733.9,3733.8,1e-08]
[1753154249700,25.57806492,3733.9,3733.8,1e-08]
[1753154250023,19.4623,3733.9,3733.8,1e-08]
[1753154250312,22.57806492,3733.9,3733.8,1e-08]
[1753154251132,25.57806492,3733.9,3733.8,1e-08]
[1753154251287,26.12806492,3733.9,3733.8,1e-08]
[1753154252717,21.41006492,3733.9,3733.8,1e-08]
[1753154252922,25.57806492,3733.9,3733.8,1e-08]
[1753154253604,11.62806492,3733.9,3733.8,1e-08]
[1753154253978,26.12806492,3733.9,3733.8,1e-08]
[1753154256124,6.22823664,3733.8,3733.7,1e-08]
[1753154256312,3.47296945,3732.5,3732.4,0.001]
[1753154256618,11.18996945,3732.5,3732.4,0.001]
[1753154256817,26.12756945,3732.5,3732.4,0.001]
[1753154258502,25.57756945,3732.5,3732.4,0.001]
[1753154258788,26.12756945,3732.5,3732.4,0.001]
[1753154260298,26.12756945,3732.5,3732.3,1e-08]
[1753154260299,7.16634123,3732.4,3732.3,1e-08]
[1753154260516,14.16709328,3732.4,3732.3,1e-08]
[1753154260925,28.66709328,3732.4,3732.3,1e-08]
[1753154261629,3.49797474,3731.1,3731.0,0.01071243]
[1753154261831,7.66597474,3731.1,3731.0,0.01071243]
[1753154262036,8.10357474,3731.1,3731.0,0.01071243]
[1753154262327,22.60357474,3731.1,3731.0,0.01071243]
[1753154262704,26.15357474,3731.1,3731.0,0.01071243]
[1753154265549,21.98557474,3731.1,3731.0,0.01071243]
[1753154266321,26.15357474,3731.1,3731.0,0.01071243]
[1753154267549,26.15357474,3731.1,3731.0,1e-08]
[1753154268218,32.58457474,3731.1,3731.0,1e-08]
[1753154269440,40.43102313,3731.1,3731.0,1e-08]
[1753154270155,0.8122,3729.4,3728.2,1.2313]
[1753154270325,4.168,3729.3,3728.8,0.7806]
[1753154270639,4.168,3729.2,3728.8,0.7806]
[1753154270838,4.168,3729.2,3728.8,0.7306]
[1753154271062,4.168,3729.2,3727.9,0.16886375]
[1753154271262,1.6648,3729.1,3728.3,2.68212392]
[1753154271473,4.168,3729.0,3728.0,2.68240091]
[1753154271640,4.168,3729.0,3728.1,0.4507]
[1753154272242,4.168,3729.0,3727.9,0.16886375]
[1753154272442,0.8122,3729.1,3727.9,0.16886375]
[1753154272677,0.7909,3728.9,3726.9,0.01113544]
[1753154272875,0.53947,3728.8,3726.9,0.01113544]
[1753154273077,0.7909,3729.9,3727.9,7.84644839]
[1753154273294,2.68079615,3730.3,3728.6,3.0]
[1753154273442,0.7909,3731.0,3728.7,0.4507]
[1753154273643,0.20195655,3731.0,3729.0,10.84644839]
[1753154273979,1.73410756,3731.5,3729.1,0.6231]
[1753154273980,0.1336,3729.7,3729.1,0.6231]
[1753154274145,0.1336,3729.7,3729.2,0.6231]
[1753154274346,4.262,3730.2,3729.6,0.1724]
[1753154274675,3.7909,3730.2,3728.8,0.02681827]
[1753154274879,1.3665137,3730.1,3728.8,0.55]
[1753154275090,1.2267,3730.1,3728.8,0.55]
[1753154275292,1.2267,3730.1,3728.8,0.4507]
[1753154275293,3.0,3729.8,3728.8,0.4507]
[1753154275460,0.4358,3729.7,3728.7,0.8087]
[1753154275781,0.4358,3729.7,3727.4,3.001]
[1753154275782,3.0,3729.4,3728.3,0.8087]
[1753154275948,2.68144929,3729.4,3728.3,0.8087]
[1753154276144,3.0,3729.5,3728.3,0.8087]
[1753154276145,2.68146837,3729.3,3728.3,1.2594]
[1753154276346,2.68161218,3729.1,3728.3,1.2594]
[1753154276680,4.296,3729.2,3728.3,0.8087]
[1753154276855,2.68211565,3728.4,3728.3,0.8087]
[1753154277177,4.295,3728.4,3727.9,0.7732]
[1753154277344,2.68220342,3728.3,3727.5,0.7955]
[1753154277544,2.68220342,3728.3,3727.4,0.4517]
[1753154277545,0.7935,3728.4,3727.4,0.001]
[1753154277843,0.7935,3729.1,3727.5,1.2462]
[1753154278045,2.68190944,3728.7,3727.7,2.6826193]
[1753154278246,2.68190944,3728.7,3727.8,1.11185581]
[1753154278447,2.68232862,3728.2,3727.8,0.66115581]
[1753154278641,3.0,3728.1,3727.5,0.7955]
[1753154278882,0.785,3728.3,3727.4,0.001]
[1753154278883,4.2208,3728.3,3727.4,0.001]
[1753154279183,3.0,3728.1,3727.4,0.001]
[1753154279384,2.68247244,3728.0,3727.4,0.001]
[1753154279546,3.0,3728.1,3727.4,0.001]
[1753154279747,0.7637,3728.7,3727.4,0.001]
[1753154279948,4.294,3728.6,3727.6,0.7785]
[1753154280175,3.0,3728.9,3727.6,0.7785]
[1753154280452,3.0,3728.9,3727.5,0.4507]
[1753154280453,3.4450285,3729.5,3727.8,0.7785]
[1753154280671,0.4358,3729.8,3728.8,2.68177844]
[1753154280999,2.68111369,3729.8,3728.9,3.4602553]
[1753154281284,3.44475427,3729.9,3728.9,3.46021849]
[1753154281486,4.292,3729.7,3728.9,0.7785]
[1753154281651,2.68132457,3729.5,3728.9,0.7785]
[1753154281844,4.292,3729.7,3728.9,0.7785]
[1753154282049,4.42654203,3729.6,3728.9,0.7785]
[1753154282388,2.68156135,3729.2,3728.9,0.7785]
[1753154282564,0.55,3729.4,3728.0,3.44708649]
[1753154282886,0.55,3729.4,3728.0,0.7647]
[1753154283060,3.0,3729.3,3728.0,0.7647]
[1753154283263,5.68147771,3729.3,3728.4,2.682097]
[1753154283465,4.288,3729.4,3728.5,0.7647]
[1753154283653,0.13554203,3729.6,3728.9,2.68172605]
[1753154283986,0.13554203,3729.6,3728.5,0.7647]
[1753154284289,2.68177146,3728.9,3728.5,0.7647]
[1753154284586,2.81557178,3728.6,3728.5,0.7647]
[1753154284799,0.8096,3728.5,3727.6,0.7647]
[1753154284988,2.68222626,3728.3,3727.6,0.7647]
[1753154285189,2.68247742,3727.9,3727.6,0.7647]
[1753154285376,2.68225712,3728.3,3727.6,0.7647]
[1753154285578,2.68190178,3728.7,3727.8,2.68247804]
[1753154285778,4.085503,3728.9,3727.9,0.4507]
[1753154285779,3.0,3728.8,3727.9,0.4507]
[1753154285961,2.68213794,3728.4,3727.9,0.4507]
[1753154286164,0.4358,3728.6,3727.6,0.7647]
[1753154286368,2.68236284,3728.1,3727.6,0.7647]
[1753154286564,0.4358,3728.4,3727.6,0.7647]
[1753154286794,0.34358,3728.3,3727.6,0.7647]
[1753154287190,2.68246109,3728.0,3727.6,0.7647]
[1753154287391,2.68248369,3727.9,3727.6,0.7647]
[1753154287603,2.68241099,3728.0,3727.6,0.7647]
[1753154287913,0.4358,3728.0,3727.1,0.8247]
[1753154288069,0.4358,3727.9,3727.1,0.8247]
[1753154288268,3.23276324,3727.5,3726.9,0.01113544]
[1753154288471,6.23276324,3727.5,3726.9,0.01113544]
[1753154288669,6.66856324,3727.5,3726.9,0.01113544]
[1753154288905,3.0,3727.5,3726.9,0.01113544]
[1753154289104,5.68276324,3727.5,3726.9,0.01113544]
[1753154289303,3.0,3727.5,3727.0,0.8247]
[1753154289469,2.6826193,3727.7,3727.0,0.8247]
[1753154289675,3.0,3727.8,3727.0,1.2754]
[1753154289972,0.7947,3728.8,3727.6,0.8247]
[1753154290189,0.7947,3728.8,3727.3,0.02682907]
[1753154290402,3.275903,3728.9,3727.7,0.4507]
[1753154290571,3.275903,3728.9,3728.1,2.68231962]
[1753154290780,3.275903,3728.9,3728.2,0.8247]
[1753154291421,3.275903,3728.9,3728.3,2.68218759]
[1753154291574,3.275903,3728.9,3728.4,0.6639857]
[1753154291774,3.275903,3728.9,3728.3,2.6821872]
[1753154292070,3.275903,3728.9,3728.5,2.68202185]
[1753154292275,3.275903,3728.9,3728.6,2.68193363]
[1753154292509,3.275903,3728.9,3728.2,0.85152259]
[1753154292681,3.275903,3728.9,3728.8,0.7856]
[1753154293024,3.275903,3728.9,3728.8,3.91812793]
[1753154293531,3.275903,3728.9,3728.8,4.30994072]
[1753154294166,3.275903,3728.9,3728.8,8.57894072]
[1753154294874,3.275903,3728.9,3728.8,9.26254072]
[1753154295371,4.267,3730.9,3729.2,2.68146913]
[1753154295703,0.1336,3729.8,3729.3,2.68146711]
[1753154296003,0.1336,3729.8,3729.3,0.3433167]
[1753154296205,0.1336,3729.8,3729.2,0.1336]
[1753154296571,0.1336,3729.8,3729.3,2.68146837]
[1753154296772,0.1336,3729.8,3729.4,0.4507]
[1753154297105,0.1336,3729.8,3729.2,0.1336]
[1753154297286,0.1336,3729.8,3729.2,2.81512853]
[1753154297495,0.1336,3729.8,3729.3,0.8142]
[1753154297708,4.262,3730.8,3729.3,0.8142]
[1753154297709,2.68039026,3730.8,3729.4,0.4458]
[1753154298006,0.1336,3730.5,3729.7,0.1336]
[1753154298194,2.68061982,3730.5,3729.4,4.7068]
[1753154298373,0.1336,3730.1,3729.4,7.52179531]
[1753154298718,0.1336,3730.1,3729.4,6.35236047]
[1753154298927,2.68040055,3730.8,3729.8,2.6810569]
[1753154299087,0.1336,3730.4,3729.8,2.8146569]
[1753154299272,0.1336,3730.4,3729.8,0.5794]
[1753154299823,0.1336,3730.4,3729.8,3.26049064]
[1753154299974,0.1336,3730.4,3729.8,0.5794]
[1753154300174,0.1336,3730.4,3729.8,3.4025447]
[1753154300375,0.1336,3730.4,3730.1,2.68089121]
[1753154300801,0.1336,3730.4,3730.2,0.4458]
[1753154301215,0.002,3731.1,3730.3,0.84100749]
[1753154301522,0.1356,3731.1,3730.3,1.52888824]
[1753154301822,0.1356,3731.1,3730.4,0.4458]
[1753154302225,2.81578166,3731.1,3730.4,0.4458]
[1753154302526,2.814441,3731.1,3730.4,0.4458]
[1753154303219,0.13425934,3731.1,3730.7,2.68041717]
[1753154303420,0.00065934,3731.1,3730.8,3.12617497]
[1753154303618,0.00065934,3731.1,3730.9,3.12611842]
[1753154303799,0.00065934,3731.1,3730.9,0.4458]
[1753154303997,0.00065934,3731.1,3731.0,4.05324904]
[1753154304222,0.00065934,3731.1,3731.0,1.37300246]
[1753154304788,0.00065934,3731.1,3731.0,5.0168]
[1753154304989,0.00065934,3731.1,3731.0,0.7668]
[1753154305227,0.00065934,3731.1,3730.7,0.7668]
[1753154305386,0.13425934,3731.1,3730.7,0.7668]
[1753154306128,0.00065934,3731.1,3731.0,2.68024658]
[1753154306286,0.8155,3732.1,3731.0,2.68024658]
[1753154306487,2.679672,3731.8,3731.0,3.25964658]
[1753154306718,2.67975845,3731.7,3731.3,0.1336]
[1753154307302,0.1336,3731.9,3731.5,0.7668]
[1753154307486,0.8155,3732.9,3731.6,0.4458]
[1753154307825,0.8155,3732.9,3731.6,0.47259815]
[1753154308031,0.1336,3732.6,3732.0,0.1336]
[1753154308186,0.4309,3732.5,3731.7,4.245]
[1753154308389,0.1336,3732.2,3731.7,4.245]
[1753154308621,0.1336,3732.2,3731.8,0.4458]
[1753154308831,0.1336,3732.6,3732.1,2.67944812]
[1753154309199,0.1336,3732.6,3732.2,0.4458]
[1753154309610,0.1336,3732.6,3732.0,0.16039528]
[1753154309836,0.1336,3732.6,3732.3,0.4458]
[1753154310033,0.1336,3732.6,3732.0,0.1336]
[1753154310703,0.1336,3732.6,3732.0,0.16039528]
[1753154310909,2.81251209,3732.9,3732.2,0.1336]
[1753154311222,0.1336,3732.9,3732.2,0.1336]
[1753154311624,0.1336,3732.9,3732.3,2.6793033]
[1753154311940,0.7617,3733.6,3732.4,4.205]
[1753154312142,7.84844839,3735.0,3732.6,0.1336]
[1753154312143,0.1336,3733.2,3732.6,0.1336]
[1753154312363,0.1336,3733.5,3732.8,0.1336]
[1753154312705,2.67864228,3733.3,3732.8,0.1336]
[1753154313107,14.5,3733.7,3732.4,0.02679241]
[1753154313108,0.7535,3733.4,3732.4,0.02679241]
[1753154313308,0.1336,3733.1,3732.5,0.1336]
[1753154313509,2.67923786,3732.5,3732.3,0.7762]
[1753154313712,2.67923786,3732.5,3731.9,0.9098]
[1753154313713,0.1336,3732.5,3731.9,0.9098]
[1753154313904,2.67924123,3732.4,3731.5,0.7762]
[1753154314239,0.1336,3732.1,3731.6,3.0]
[1753154314646,2.67953467,3732.0,3731.5,3.9098]
[1753154314867,2.67961985,3731.9,3731.5,3.9098]
[1753154315069,0.1336,3732.1,3731.5,4.3556]
[1753154315651,2.81306474,3732.1,3731.5,4.3556]
[1753154316147,2.81308141,3732.1,3731.5,4.3556]
[1753154316550,0.1336,3732.1,3731.5,4.3556]
[1753154316764,0.1336,3732.1,3731.5,7.03545331]
[1753154316966,2.81308097,3732.1,3731.5,4.3556]
[1753154317175,0.1336,3732.1,3731.5,4.3556]
[1753154317321,2.6795284,3732.0,3731.5,3.9098]
[1753154317522,2.67972828,3731.8,3731.5,0.1336]
[1753154317765,3.11043424,3732.0,3731.5,4.3646]
[1753154317929,0.32440342,3731.9,3731.5,4.231]
[1753154318256,0.1336,3731.6,3731.5,4.231]
[1753154318457,0.1336,3731.6,3731.1,0.7588]
[1753154318458,2.81341562,3731.6,3731.1,0.7588]
[1753154318822,2.81341562,3731.6,3731.1,4.9878]
[1753154319023,2.67988744,3731.5,3731.1,4.229]
[1753154319343,0.5645,3731.6,3731.1,4.229]
[1753154319544,0.1336,3731.6,3731.0,2.81383378]
[1753154319870,0.1336,3731.6,3731.1,2.68017474]
[1753154320061,0.7576,3732.3,3731.0,1.03980617]
[1753154320231,0.1336,3731.9,3731.4,2.67995756]
[1753154320421,0.1336,3731.9,3731.4,0.7588]
[1753154320625,2.67973648,3731.8,3731.3,0.1336]
[1753154320821,2.67973648,3731.8,3731.0,0.4458]
[1753154320822,0.4309,3731.7,3730.7,1.2544]
[1753154321161,0.1336,3731.3,3730.8,4.227]
[1753154321857,0.4309,3731.2,3730.4,0.4458]
[1753154322160,0.4309,3731.2,3729.9,0.7984]
[1753154322329,0.4309,3731.2,3730.0,4.225]
[1753154322330,2.68050588,3730.7,3730.0,4.225]
[1753154322524,2.6805496,3730.6,3730.0,4.225]
[1753154322750,14.9309,3730.9,3730.0,4.225]
[1753154322955,0.4309,3730.9,3730.0,4.225]
[1753154323326,2.68039026,3730.8,3729.9,7.7053655]
[1753154323570,0.4309,3730.9,3730.0,2.68090807]
[1753154323737,2.68040265,3730.8,3730.0,2.68090807]
[1753154324565,0.4309,3730.9,3729.9,5.0244]
[1753154324734,2.68045025,3730.8,3730.0,2.68090923]
[1753154324931,0.4309,3730.9,3729.9,5.0244]
[1753154325269,2.68045689,3730.8,3729.9,7.70543659]
[1753154325486,2.68045689,3730.8,3730.0,2.68095412]
[1753154325969,2.6805947,3730.6,3729.9,5.0244]
[1753154326335,0.4309,3730.9,3729.9,5.0244]
[1753154326735,2.67904181,3732.7,3730.0,3.4458]
[1753154327065,2.68029411,3731.0,3730.2,2.68075888]
[1753154327264,0.4512,3731.1,3730.0,0.4458]
[1753154327568,3.0,3731.3,3730.1,4.68590893]
[1753154327745,2.68001964,3731.4,3730.6,2.68051245]
[1753154328067,2.68001964,3731.4,3730.7,3.47005581]
[1753154328266,2.6801579,3731.2,3730.2,0.4381]
[1753154328470,1.2749,3731.5,3730.2,0.4381]
[1753154328471,4.2749,3731.5,3730.3,3.47033464]
[1753154328668,2.67995926,3731.4,3730.4,2.68067099]
[1753154328870,6.95479075,3731.5,3730.6,2.68047571]
[1753154329056,2.67999011,3731.4,3730.6,2.68047571]
[1753154329234,0.8237,3731.5,3730.7,2.68042804]
[1753154329569,2.67991554,3731.5,3730.7,2.68045298]
[1753154329882,2.6798308,3731.6,3730.8,2.68036833]
[1753154330169,3.0,3731.6,3730.5,0.4381]
[1753154330372,3.4512,3731.6,3730.3,0.7896]
[1753154330675,2.68020246,3731.1,3730.4,2.68066635]
[1753154330879,2.68001139,3731.4,3730.4,2.68066635]
[1753154331194,2.68003108,3731.3,3730.4,2.68066635]
[1753154331559,2.68003108,3731.3,3730.5,2.6806019]
[1753154331755,0.4512,3731.5,3730.3,0.7896]
[1753154332004,0.4512,3731.5,3730.3,1.2277]
[1753154332306,0.1336,3731.1,3730.5,2.68060581]
[1753154332850,0.1336,3731.1,3730.4,2.81426985]
[1753154333093,0.1336,3730.8,3730.3,3.90839436]
[1753154333508,0.1336,3731.1,3730.6,2.68050821]
[1753154333786,0.4512,3731.0,3729.9,3.0]
[1753154333988,0.1336,3730.7,3729.7,0.9087]
[1753154334286,0.1336,3730.3,3729.7,0.9087]
[1753154334590,0.1336,3730.3,3729.8,2.68109266]
[1753154335091,0.1336,3730.3,3729.7,7.80886674]
[1753154335462,2.68084235,3730.2,3729.7,4.219]
[1753154335668,2.68089327,3730.1,3729.7,4.219]
[1753154335885,3.5256526,3730.1,3729.0,0.822]
[1753154336092,3.5256526,3730.1,3729.1,0.1336]
[1753154336392,21.8560526,3730.1,3728.8,4.3506]
[1753154336958,21.8560526,3730.1,3728.8,7.03242068]
[1753154337286,21.8560526,3730.1,3728.8,4.3506]
[1753154338653,21.8560526,3730.1,3728.9,2.6817551]
[1753154338857,26.0720526,3730.1,3729.0,2.68167741]
[1753154339259,4.2816,3730.1,3729.1,2.68157204]
[1753154339459,10.72629327,3730.1,3729.3,0.7506]
[1753154339782,25.67749327,3730.1,3729.3,0.7506]
[1753154340657,15.7816,3730.1,3729.0,0.4381]
[1753154340852,1.2112,3730.5,3729.5,2.68125375]
[1753154341058,0.4512,3730.1,3729.3,0.1336]
[1753154341286,3.13209327,3730.1,3728.9,0.7567]
[1753154341493,21.39209327,3730.1,3728.7,0.1336]
[1753154341696,2.68191187,3728.7,3728.5,0.001]